bitfinex-derivatives/quotes_BNBF0:USTF0_20250708
["timestamp","ask_amount","ask_price","bid_price","bid_amount"]
[1751936870993,1.03577863,661.04,660.33,2.24746194]
[1751936871193,1.03577863,661.06,660.33,2.24746194]
[1751936871392,1.03577863,661.05,660.33,2.24746194]
[1751936871592,1.03577863,661.06,660.33,2.24746194]
[1751936871790,1.03577863,661.05,660.33,2.24746194]
[1751936872093,1.03577863,661.06,660.34,2.24746194]
[1751936872394,1.03577863,661.05,660.34,2.24746194]
[1751936872595,0.26338196,661.07,660.34,2.24746194]
[1751936872796,1.03579676,661.06,660.34,2.24746194]
[1751936872991,1.03579676,661.05,660.34,2.24746194]
[1751936873197,1.03579676,661.04,660.34,2.24746194]
[1751936873494,1.03579676,661.06,660.34,2.24746194]
[1751936873694,1.03579676,661.05,660.34,2.24746194]
[1751936873892,1.03579676,661.04,660.42,2.24746194]
[1751936874092,1.03579676,661.03,660.43,2.24746194]
[1751936874293,1.03579676,661.02,660.43,2.24746194]
[1751936874496,1.03579676,661.01,660.43,2.24746194]
[1751936874696,1.03579676,661.05,660.43,2.24746194]
[1751936874894,1.69200489,661.05,660.45,2.24746194]
[1751936875192,1.69200489,661.11,660.51,2.24746194]
[1751936875394,1.03579676,661.1,660.51,2.24746194]
[1751936875595,1.03579676,661.09,660.51,2.24746194]
[1751936875794,1.69200489,661.11,660.51,2.24746194]
[1751936875795,1.03579676,661.08,660.51,2.24746194]
[1751936875998,1.03579676,661.07,660.51,2.24746194]
[1751936876194,1.03579676,661.06,660.52,1.201]
[1751936876400,1.03579676,661.1,660.52,1.201]
[1751936876599,1.69200489,661.11,660.52,1.201]
[1751936876600,1.03579676,661.09,660.52,1.201]
[1751936876800,1.03579676,661.08,660.52,1.201]
[1751936877096,1.03579676,661.07,660.52,3.44846194]
[1751936877300,1.03579676,661.1,660.52,3.44846194]
[1751936877500,1.03579676,661.09,660.52,1.201]
[1751936877696,1.03579676,661.08,660.52,1.201]
[1751936877901,1.03579676,661.07,660.52,1.201]
[1751936878100,1.03579676,661.1,660.52,3.44846194]
[1751936878395,1.03579676,661.09,660.52,3.44846194]
[1751936878698,1.03579676,661.08,660.52,1.201]
[1751936878997,0.26333413,661.19,660.52,1.201]
[1751936878998,1.03579676,661.07,660.53,2.24746194]
[1751936879201,1.03579676,661.06,660.54,2.24746194]
[1751936879396,1.03579676,661.09,660.53,2.24746194]
[1751936879599,1.03579676,661.08,660.53,2.24746194]
[1751936879799,1.69200489,661.1,660.53,2.24746194]
[1751936879800,1.03579676,661.07,660.53,2.24746194]
[1751936879996,1.03579676,661.06,660.53,2.24746194]
[1751936880200,1.03579676,661.09,660.53,2.24746194]
[1751936880500,1.03579676,661.08,660.53,2.24746194]
[1751936880800,1.03579676,661.07,660.53,2.24746194]
[1751936881001,2.78937635,661.1,660.53,2.24746194]
[1751936881200,1.03560789,661.09,660.53,2.24746194]
[1751936881401,1.03560789,661.08,660.53,2.24746194]
[1751936881601,1.03560789,661.07,660.53,2.24746194]
[1751936881800,1.03560789,661.1,660.53,2.24746194]
[1751936882001,1.03560789,661.09,660.53,2.24746194]
[1751936882303,1.03560789,661.08,660.53,2.24746194]
[1751936882503,1.03560789,661.1,660.53,2.24746194]
[1751936882703,1.03560789,661.09,660.53,2.24746194]
[1751936882904,1.03560789,661.08,660.53,2.24746194]
[1751936883100,1.03560789,661.07,660.53,2.24746194]
[1751936883305,1.03560789,661.1,660.53,2.24746194]
[1751936883601,1.03560789,661.09,660.53,2.24746194]
[1751936883801,1.03560789,661.08,660.53,2.24746194]
[1751936884004,1.03560789,661.1,660.53,2.24746194]
[1751936884204,1.03560789,661.09,660.53,2.24746194]
[1751936884401,1.03560789,661.11,660.53,2.24746194]
[1751936884600,1.03560789,661.1,660.53,2.24746194]
[1751936884800,1.03560789,661.09,660.53,2.24746194]
[1751936885000,1.03560789,661.11,660.53,2.24746194]
[1751936885301,1.03560789,661.1,660.53,2.24746194]
[1751936885505,1.03560789,661.09,660.53,2.24746194]
[1751936885704,1.03560789,661.11,660.53,2.24746194]
[1751936885906,1.03560789,661.1,660.53,2.24746194]
[1751936886105,1.03560789,661.09,660.53,2.24746194]
[1751936886303,1.69200489,661.12,660.53,2.24746194]
[1751936886608,1.03575536,661.11,660.53,2.24746194]
[1751936886805,1.03575536,661.1,660.53,2.24746194]
[1751936887004,1.03575536,661.09,660.53,2.24746194]
[1751936887209,1.03575536,661.11,660.52,3.44846194]
[1751936887411,1.03575536,661.1,660.52,1.201]
[1751936887610,1.03575536,661.12,660.52,1.201]
[1751936887811,1.03575536,661.11,660.52,1.201]
[1751936888010,1.03575536,661.1,660.52,1.201]
[1751936888211,1.03575536,661.12,660.52,1.201]
[1751936888508,1.03575536,661.11,660.52,1.201]
[1751936888710,1.03575536,661.1,660.52,1.201]
[1751936888907,1.03575536,661.12,660.52,1.201]
[1751936889111,1.03575536,661.11,660.52,1.201]
[1751936889412,1.03575536,661.1,660.52,1.201]
[1751936889613,2.78992115,661.12,660.52,1.201]
[1751936889912,1.03575536,661.11,660.52,1.201]
[1751936890409,1.03575536,661.13,660.52,1.201]
[1751936890607,1.03575536,661.12,660.52,1.201]
[1751936890808,1.03575536,661.11,660.52,1.201]
[1751936891015,1.03575536,661.12,660.52,1.201]
[1751936891312,0.26333413,661.19,660.52,1.201]
[1751936891313,1.03575536,661.11,660.52,1.201]
[1751936891506,1.03575536,661.13,660.52,1.201]
[1751936891708,1.03575536,661.12,660.52,1.201]
[1751936891912,1.03575536,661.13,660.52,1.201]
[1751936892113,1.03575536,661.12,660.52,1.201]
[1751936892310,1.69200489,661.16,660.52,1.201]
[1751936892614,1.03560187,661.15,660.52,1.201]
[1751936892811,1.03560187,661.14,660.52,1.201]
[1751936893013,1.03560187,661.15,660.52,1.201]
[1751936893211,1.03560187,661.14,660.52,1.201]
[1751936893410,1.03560187,661.15,660.52,1.201]
[1751936893611,1.03560187,661.14,660.52,1.201]
[1751936893813,1.03560187,661.15,660.52,1.201]
[1751936894016,1.03560187,661.14,660.52,1.201]
[1751936894210,1.03560187,661.15,660.52,1.201]
[1751936894414,1.03560187,661.14,660.52,1.201]
[1751936894618,1.03560187,661.15,660.52,1.201]
[1751936894914,1.03560187,661.14,660.52,1.201]
[1751936895109,1.03560187,661.15,660.52,1.201]
[1751936895312,1.03560187,661.14,660.44,2.24746194]
[1751936895512,1.03560187,661.15,660.44,2.24746194]
[1751936895711,1.03560187,661.14,660.43,2.24746194]
[1751936895911,1.03560187,661.15,660.43,2.24746194]
[1751936896116,1.03560187,661.14,660.43,2.24746194]
[1751936896314,1.03560187,661.15,660.43,2.24746194]
[1751936896512,1.03560187,661.14,660.43,2.24746194]
[1751936896716,1.03560187,661.15,660.43,2.24746194]
[1751936896911,1.03560187,661.14,660.43,2.24746194]
[1751936897110,1.03560187,661.13,660.43,2.24746194]
[1751936897313,1.03560187,661.15,660.44,2.24746194]
[1751936897516,1.03560187,661.14,660.44,2.24746194]
[1751936897817,1.03560187,661.13,660.44,2.24746194]
[1751936898017,1.03560187,661.15,660.44,2.24746194]
[1751936898218,1.03560187,661.14,660.44,2.24746194]
[1751936898416,1.03560187,661.13,660.44,2.24746194]
[1751936898617,1.03560187,661.15,660.44,2.24746194]
[1751936898918,1.03560187,661.14,660.44,2.24746194]
[1751936899219,1.03560187,661.13,660.45,1.4]
[1751936899419,1.03560187,661.15,660.45,1.4]
[1751936899619,1.03560187,661.14,660.45,1.4]
[1751936899818,1.03560187,661.13,660.45,1.4]
[1751936900018,2.72760676,661.15,660.45,3.64746194]
[1751936900218,1.03560187,661.14,660.45,3.64746194]
[1751936900416,1.03560187,661.13,660.45,3.64746194]
[1751936900616,1.03560187,661.14,660.45,3.64746194]
[1751936900915,1.03560187,661.13,660.45,3.64746194]
[1751936901117,1.03560187,661.14,660.45,3.64746194]
[1751936901314,1.03560187,661.13,660.45,3.64746194]
[1751936901516,1.03560187,661.14,660.45,3.64746194]
[1751936901720,1.03560187,661.13,660.46,2.24746194]
[1751936901920,1.03560187,661.14,660.46,2.24746194]
[1751936902121,1.03560187,661.13,660.46,2.24746194]
[1751936902318,1.03560187,661.12,660.49,2.24746194]
[1751936902524,1.03560187,661.11,660.49,2.24746194]
[1751936902718,1.03560187,661.13,660.49,2.24746194]
[1751936902921,1.03560187,661.12,660.5,2.24746194]
[1751936903323,1.69200489,661.15,660.46,2.24746194]
[1751936903618,1.03560187,661.14,660.46,2.24746194]
[1751936903821,1.03560187,661.13,660.46,2.24746194]
[1751936904119,1.69200489,661.15,660.46,2.24746194]
[1751936904325,1.03560187,661.14,660.45,1.4]
[1751936904626,2.72760676,661.16,660.45,1.4]
[1751936904825,1.03560187,661.15,660.45,1.4]
[1751936905020,1.03560187,661.14,660.45,1.4]
[1751936905320,1.03560187,661.15,660.45,1.4]
[1751936905524,1.03560187,661.14,660.45,1.4]
[1751936905722,1.03560187,661.15,660.45,1.4]
[1751936906124,1.03560187,661.16,660.45,1.4]
[1751936906324,1.03560187,661.15,660.45,1.4]
[1751936906524,1.03560187,661.14,660.45,1.4]
[1751936906821,1.03560187,661.16,660.45,1.4]
[1751936907026,1.03560187,661.15,660.45,1.4]
[1751936907225,1.03560187,661.14,660.45,1.4]
[1751936907422,1.03560187,661.15,660.45,1.4]
[1751936907623,1.03560187,661.14,660.45,1.4]
[1751936907827,1.03560187,661.15,660.45,1.4]
[1751936908028,1.03560187,661.14,660.45,1.4]
[1751936908325,1.03560187,661.15,660.45,1.4]
[1751936908531,1.03560187,661.14,660.45,1.4]
[1751936908726,1.03560187,661.16,660.45,1.4]
[1751936908924,1.03560187,661.15,660.45,1.4]
[1751936909125,1.03560187,661.14,660.45,1.4]
[1751936909429,1.03560187,661.13,660.45,1.4]
[1751936909629,1.03560187,661.16,660.45,1.4]
[1751936909827,1.03560187,661.15,660.45,1.4]
[1751936910025,1.03560187,661.14,660.45,1.4]
[1751936910229,1.03560187,661.13,660.45,1.4]
[1751936910430,1.03560187,661.16,660.45,3.64746194]
[1751936910731,1.03560187,661.15,660.45,3.64746194]
[1751936910929,1.03560187,661.14,660.45,3.64746194]
[1751936911124,1.03607758,661.13,660.45,3.64746194]
[1751936911324,1.03614891,661.12,660.45,3.64746194]
[1751936911731,1.69200489,661.16,660.45,3.64746194]
[1751936912027,1.03614921,661.15,660.45,3.64746194]
[1751936912225,1.03614921,661.14,660.45,3.64746194]
[1751936912429,1.03614921,661.13,660.45,3.64746194]
[1751936912728,1.69200489,661.16,660.45,3.64746194]
[1751936912729,1.03614921,661.12,660.45,3.64746194]
[1751936912929,1.03614921,661.15,660.45,3.64746194]
[1751936913127,1.03614921,661.14,660.46,2.24746194]
[1751936913330,1.69200489,661.16,660.46,2.24746194]
[1751936913331,1.03614921,661.13,660.46,2.24746194]
[1751936913526,1.03614921,661.15,660.48,2.24746194]
[1751936913726,1.03614921,661.14,660.48,2.24746194]
[1751936913932,1.03614921,661.17,660.48,2.24746194]
[1751936914127,1.03614921,661.17,660.45,1.4]
[1751936914128,1.03614921,661.16,660.51,2.24746194]
[1751936914330,1.03614921,661.15,660.51,2.24746194]
[1751936914528,1.03614921,661.14,660.51,2.24746194]
[1751936914728,1.03614921,661.13,660.51,2.24746194]
[1751936914932,1.03614921,661.12,660.51,2.24746194]
[1751936915133,1.03614921,661.16,660.51,2.24746194]
[1751936915332,1.03614921,661.15,660.51,2.24746194]
[1751936915530,1.03614921,661.14,660.52,2.24746194]
[1751936915730,1.03614921,661.13,660.52,2.24746194]
[1751936915931,1.03614921,661.12,660.54,2.24746194]
[1751936916129,1.03614921,661.11,660.54,2.24746194]
[1751936916332,1.03614921,661.1,660.54,2.24746194]
[1751936916528,2.72861553,661.15,660.54,2.24746194]
[1751936916733,1.03661064,661.14,660.54,2.24746194]
[1751936916933,1.03661064,661.13,660.54,2.24746194]
[1751936917133,1.03661064,661.12,660.54,2.24746194]
[1751936917432,1.03661064,661.11,660.54,2.24746194]
[1751936917630,1.03661064,661.1,660.54,2.24746194]
[1751936917834,1.03661064,661.09,660.54,2.24746194]
[1751936918030,1.03661064,661.14,660.54,2.24746194]
[1751936918233,1.03661064,661.13,660.54,2.24746194]
[1751936918436,1.03661064,661.12,660.55,2.24746194]
[1751936918634,1.03661064,661.11,660.55,2.24746194]
[1751936918934,1.03661064,661.1,660.55,2.24746194]
[1751936919131,1.03661064,661.09,660.55,2.24746194]
[1751936919330,1.03661064,661.08,660.55,2.24746194]
[1751936919534,1.03661064,661.14,660.55,2.24746194]
[1751936919728,1.69200489,661.15,660.55,2.24746194]
[1751936919729,1.03661064,661.13,660.55,2.24746194]
[1751936919930,1.03661064,661.12,660.55,2.24746194]
[1751936920130,1.03661064,661.11,660.55,2.24746194]
[1751936920331,1.03661064,661.1,660.55,2.24746194]
[1751936920532,1.03661064,661.09,660.55,2.24746194]
[1751936920832,1.03661064,661.08,660.55,2.24746194]
[1751936921033,1.03661064,661.14,660.55,2.24746194]
[1751936921231,1.03661064,661.13,660.55,2.24746194]
[1751936921430,1.03661064,661.12,660.55,2.24746194]
[1751936921637,1.03661064,661.11,660.55,2.24746194]
[1751936921833,1.03661064,661.1,660.55,2.24746194]
[1751936922131,1.03661064,661.09,660.55,2.24746194]
[1751936922434,1.03661064,661.08,660.55,2.24746194]
[1751936922636,1.03661064,661.14,660.55,2.24746194]
[1751936922833,1.03661064,661.13,660.56,2.24746194]
[1751936923032,1.03661064,661.12,660.56,2.24746194]
[1751936923233,1.03661064,661.11,660.56,2.24746194]
[1751936923531,1.03661064,661.1,660.57,2.24746194]
[1751936923732,1.03661064,661.09,660.57,2.24746194]
[1751936923937,1.03661064,661.08,660.58,2.24746194]
[1751936924138,1.03661064,661.07,660.58,2.24746194]
[1751936924337,1.03661064,661.12,660.58,2.24746194]
[1751936924637,1.03661064,661.11,660.59,2.24746194]
[1751936924841,1.03661064,661.1,660.59,2.24746194]
[1751936925036,1.03661064,661.09,660.59,2.24746194]
[1751936925239,1.03661064,661.08,660.59,2.24746194]
[1751936925436,1.03661064,661.07,660.59,2.24746194]
[1751936925742,1.03661064,661.06,660.59,2.24746194]
[1751936925939,1.03661064,661.11,660.59,2.24746194]
[1751936926235,1.03661064,661.1,660.59,2.24746194]
[1751936926438,1.03661064,661.09,660.59,2.24746194]
[1751936926637,1.03661064,661.08,660.59,2.24746194]
[1751936926834,1.03661064,661.07,660.59,2.24746194]
[1751936927035,1.03661064,661.06,660.59,2.24746194]
[1751936927234,1.03661064,661.12,660.59,2.24746194]
[1751936927437,1.03661064,661.11,660.59,2.24746194]
[1751936927635,1.69200489,661.13,660.59,2.24746194]
[1751936927636,1.03661064,661.1,660.59,2.24746194]
[1751936927840,1.03661064,661.09,660.59,2.24746194]
[1751936928136,1.03661064,661.08,660.59,2.24746194]
[1751936928341,1.03661064,661.07,660.59,2.24746194]
[1751936928642,1.03661064,661.06,660.59,2.24746194]
[1751936928842,1.03661064,661.05,660.59,2.24746194]
[1751936929140,1.03661064,661.11,660.59,2.24746194]
[1751936929439,1.03661064,661.1,660.56,2.24746194]
[1751936929642,1.03661064,661.09,660.56,2.24746194]
[1751936929840,1.03661064,661.08,660.56,2.24746194]
[1751936930035,1.03661064,661.07,660.56,2.24746194]
[1751936930237,1.03661064,661.06,660.56,2.24746194]
[1751936930442,1.03661064,661.12,660.57,2.24746194]
[1751936930638,1.03661064,661.11,660.57,2.24746194]
[1751936930839,1.03661064,661.1,660.57,2.24746194]
[1751936931038,1.03661064,661.09,660.57,2.24746194]
[1751936931236,1.03661064,661.08,660.57,2.24746194]
[1751936931441,1.03661064,661.07,660.57,2.24746194]
[1751936931642,1.03661064,661.06,660.57,2.24746194]
[1751936931943,1.03661064,661.05,660.57,2.24746194]
[1751936932142,1.03661064,661.12,660.57,2.24746194]
[1751936932344,1.03661064,661.11,660.57,2.24746194]
[1751936932542,1.03661064,661.1,660.57,2.24746194]
[1751936932748,1.03661064,661.09,660.57,2.24746194]
[1751936933047,1.03661064,661.08,660.57,2.24746194]
[1751936933347,1.03661064,661.07,660.57,2.24746194]
[1751936933646,1.69200489,661.13,660.57,2.24746194]
[1751936933647,1.03661064,661.06,660.57,2.24746194]
[1751936933942,1.03661064,661.05,660.57,2.24746194]
[1751936934142,1.03661064,661.04,660.57,2.24746194]
[1751936934342,1.03726912,661.03,660.57,2.24746194]
[1751936934547,1.03726912,661.11,660.58,2.24746194]
[1751936934746,1.03726912,661.1,660.58,2.24746194]
[1751936934942,1.69200489,661.12,660.58,2.24746194]
[1751936934943,1.03726912,661.09,660.58,2.24746194]
[1751936935144,1.03726912,661.08,660.58,2.24746194]
[1751936935447,1.03726912,661.07,660.58,2.24746194]
[1751936935647,1.03726912,661.06,660.58,2.24746194]
[1751936935847,1.03726912,661.05,660.58,2.24746194]
[1751936936048,1.03726912,661.04,660.6,2.24746194]
[1751936936243,1.03726912,661.03,660.6,2.24746194]
[1751936936448,1.03726912,661.02,660.6,2.24746194]
[1751936936749,1.03726912,661.1,660.6,2.24746194]
[1751936936948,1.03726912,661.09,660.6,2.24746194]
[1751936937148,1.69200489,661.11,660.6,2.24746194]
[1751936937348,1.03726307,661.1,660.6,2.24746194]
[1751936937545,1.03726307,661.09,660.6,2.24746194]
[1751936937845,1.03726307,661.08,660.6,2.24746194]
[1751936938046,1.03726307,661.07,660.58,2.24746194]
[1751936938245,1.03726307,661.06,660.58,2.24746194]
[1751936938445,1.03726307,661.05,660.58,2.24746194]
[1751936938744,1.03726307,661.04,660.58,2.24746194]
[1751936938944,1.03726307,661.03,660.58,2.24746194]
[1751936939147,1.03726307,661.02,660.61,2.24746194]
[1751936939348,1.03726307,661.1,660.61,2.24746194]
[1751936939549,1.03726307,661.09,660.61,2.24746194]
[1751936939747,1.03726307,661.08,660.61,2.24746194]
[1751936939950,1.03726307,661.07,660.61,2.24746194]
[1751936940253,1.03726307,661.06,660.61,2.24746194]
[1751936940452,1.03726307,661.05,660.61,2.24746194]
[1751936940648,1.03726307,661.04,660.61,2.24746194]
[1751936940851,1.03726307,661.03,660.61,2.24746194]
[1751936941047,1.03726307,661.02,660.61,2.24746194]
[1751936941250,2.72926796,661.1,660.61,2.24746194]
[1751936941451,1.03726307,661.09,660.61,2.24746194]
[1751936941648,1.03726307,661.08,660.61,2.24746194]
[1751936941849,1.03726307,661.07,660.61,2.24746194]
[1751936942152,1.03726307,661.06,660.6,2.24746194]
[1751936942352,1.03726307,661.05,660.6,2.24746194]
[1751936942549,1.03726307,661.04,660.6,2.24746194]
[1751936942751,1.03726307,661.03,660.6,2.24746194]
[1751936943053,1.03726307,661.02,660.6,2.24746194]
[1751936943251,1.03726307,661.1,660.61,2.24746194]
[1751936943452,1.03726307,661.09,660.61,2.24746194]
[1751936943652,1.03726307,661.08,660.6,2.24746194]
[1751936943847,1.03726307,661.07,660.6,2.24746194]
[1751936944048,1.03726307,661.06,660.6,2.24746194]
[1751936944249,1.03726307,661.05,660.6,2.24746194]
[1751936944451,1.03726307,661.04,660.61,2.24746194]
[1751936944653,1.03726307,661.03,660.61,2.24746194]
[1751936944948,1.03726307,661.02,660.61,2.24746194]
[1751936945148,1.03726307,661.01,660.61,2.24746194]
[1751936945453,1.03726307,661.09,660.61,2.24746194]
[1751936945653,1.03726307,661.08,660.61,2.24746194]
[1751936945853,1.03728135,661.07,660.61,2.24746194]
[1751936946148,1.03728135,661.06,660.61,2.24746194]
[1751936946352,1.03728135,661.05,660.61,2.24746194]
[1751936946650,1.03728135,661.04,660.61,2.24746194]
[1751936946850,1.03728135,661.03,660.61,2.24746194]
[1751936947153,1.03728135,661.02,660.61,2.24746194]
[1751936947348,1.03728135,661.01,660.61,2.24746194]
[1751936947547,1.69200489,661.1,660.61,2.24746194]
[1751936947548,1.03728135,661.09,660.61,2.24746194]
[1751936947749,1.03728135,661.08,660.61,2.24746194]
[1751936947950,1.03728135,661.07,660.62,2.24746194]
[1751936948154,1.03728135,661.06,660.62,2.24746194]
[1751936948453,1.03728135,661.05,660.62,2.24746194]
[1751936948654,1.03728135,661.04,660.62,2.24746194]
[1751936948953,1.03728135,661.03,660.62,2.24746194]
[1751936949153,1.03728135,661.02,660.62,2.24746194]
[1751936949351,1.03728135,661.01,660.62,2.24746194]
[1751936949552,1.03728135,661.09,660.62,2.24746194]
[1751936949755,1.03728135,661.08,660.62,2.24746194]
[1751936950052,1.03755713,661.07,660.62,2.24746194]
[1751936950355,1.03755713,661.06,660.62,2.24746194]
[1751936950556,1.03755713,661.05,660.62,2.24746194]
[1751936950755,1.03755713,661.04,660.62,2.24746194]
[1751936950955,1.03755713,661.03,660.62,2.24746194]
[1751936951152,1.03755713,661.02,660.62,2.24746194]
[1751936951455,1.69200489,661.1,660.62,2.24746194]
[1751936951456,1.03755713,661.01,660.62,2.24746194]
[1751936951652,2.79443086,661.09,660.62,2.24746194]
[1751936951857,1.03755713,661.08,660.62,2.24746194]
[1751936952055,1.03755713,661.07,660.62,2.24746194]
[1751936952257,1.03755713,661.06,660.62,2.24746194]
[1751936952460,1.03755713,661.05,660.62,2.24746194]
[1751936952654,1.03755713,661.04,660.62,2.24746194]
[1751936952859,1.03755713,661.03,660.62,2.24746194]
[1751936953059,1.03755713,661.02,660.62,2.24746194]
[1751936953354,1.03755713,661.01,660.62,2.24746194]
[1751936953554,1.03755713,661.0,660.62,2.24746194]
[1751936953754,1.03755713,661.09,660.62,2.24746194]
[1751936953955,1.03755713,661.08,660.62,2.24746194]
[1751936954160,1.03755713,661.07,660.62,2.24746194]
[1751936954460,1.03755713,661.06,660.62,2.24746194]
[1751936954659,1.03755713,661.05,660.62,2.24746194]
[1751936954862,1.03755713,661.04,660.62,2.24746194]
[1751936955061,1.03755713,661.03,660.62,2.24746194]
[1751936955261,1.03755713,661.02,660.62,2.24746194]
[1751936955556,1.03755713,661.01,660.62,2.24746194]
[1751936955761,1.03755713,661.0,660.62,2.24746194]
[1751936955958,1.03755713,661.09,660.62,2.24746194]
[1751936956259,1.03755713,661.08,660.62,2.24746194]
[1751936956562,1.03755713,661.07,660.61,2.24746194]
[1751936956762,1.03755713,661.06,660.61,2.24746194]
[1751936956958,1.0376847,661.05,660.59,2.24746194]
[1751936957163,1.0376847,661.04,660.59,2.24746194]
[1751936957460,1.0376847,661.03,660.6,2.24746194]
[1751936957759,1.0376847,661.02,660.6,2.24746194]
[1751936957958,1.0376847,661.01,660.6,2.24746194]
[1751936958163,1.0376847,661.08,660.6,2.24746194]
[1751936958362,1.0376847,661.07,660.61,2.24746194]
[1751936958559,1.0376847,661.06,660.61,2.24746194]
[1751936958758,1.0376847,661.05,660.6,2.24746194]
[1751936958960,1.0376847,661.04,660.6,2.24746194]
[1751936959162,1.0376847,661.03,660.6,2.24746194]
[1751936959463,1.0376847,661.02,660.61,2.24746194]
[1751936959664,1.0376847,661.01,660.61,2.24746194]
[1751936959861,1.0376847,661.0,660.61,2.24746194]
[1751936960060,1.0376847,661.09,660.62,1.553]
[1751936960262,1.0376847,661.08,660.62,1.553]
[1751936960461,1.0376847,661.07,660.62,1.553]
[1751936960766,1.0376847,661.06,660.62,1.553]
[1751936961060,1.0376847,661.05,660.62,1.553]
[1751936961260,1.0376847,661.04,660.62,1.553]
[1751936961565,1.0376847,661.03,660.62,1.553]
[1751936961762,1.0376847,661.02,660.62,1.553]
[1751936961964,1.0376847,661.01,660.62,1.553]
[1751936962166,1.0376847,661.0,660.62,1.553]
[1751936962361,1.0376847,660.99,660.62,1.553]
[1751936962562,1.0376847,661.09,660.62,1.553]
[1751936962768,1.0376847,661.08,660.62,1.553]
[1751936962968,1.0376847,661.07,660.62,1.553]
[1751936963164,1.0376847,661.06,660.62,1.553]
[1751936963465,1.0376847,661.05,660.62,1.553]
[1751936963665,1.0376847,661.04,660.62,1.553]
[1751936963868,1.0376847,661.03,660.62,1.553]
[1751936964068,1.0376847,661.02,660.62,1.553]
[1751936964265,1.0376847,661.01,660.62,1.553]
[1751936964571,1.0376847,661.0,660.62,1.553]
[1751936964767,1.0376847,661.1,660.62,1.553]
[1751936965068,1.0376847,661.09,660.62,1.553]
[1751936965364,1.0376847,661.08,660.62,1.553]
[1751936965564,1.0376847,661.07,660.62,1.553]
[1751936965761,1.0376847,661.06,660.62,1.553]
[1751936965967,1.0376847,661.05,660.62,1.553]
[1751936966167,1.0376847,661.04,660.62,1.553]
[1751936966462,1.0376847,661.03,660.62,1.553]
[1751936966763,1.0376847,661.02,660.62,1.553]
[1751936966964,1.0376847,661.01,660.62,1.553]
[1751936967266,1.0376847,661.0,660.62,1.553]
[1751936967466,1.0376847,661.09,660.62,1.553]
[1751936967667,1.69200489,661.11,660.62,1.553]
[1751936967668,1.0376847,661.08,660.62,1.553]
[1751936967968,1.0376847,661.07,660.62,1.553]
[1751936968168,1.0376847,661.06,660.62,1.553]
[1751936968368,1.0376847,661.05,660.62,1.553]
[1751936968568,1.0376847,661.04,660.62,1.553]
[1751936968867,1.0376847,661.03,660.62,1.553]
[1751936969066,1.0376847,661.02,660.62,1.553]
[1751936969267,1.0376847,661.01,660.62,1.553]
[1751936969467,1.0376847,661.0,660.62,1.553]
[1751936969667,1.0376847,661.1,660.62,1.553]
[1751936969965,1.0376847,661.09,660.62,1.553]
[1751936970171,1.0376847,661.08,660.62,1.553]
[1751936970369,1.0376847,661.07,660.62,1.553]
[1751936970569,1.0376847,661.06,660.62,1.553]
[1751936970771,1.0376847,661.05,660.62,1.553]
[1751936970970,1.0376847,661.04,660.62,1.553]
[1751936971169,1.0376847,661.03,660.62,1.553]
[1751936971369,1.0376847,661.02,660.62,1.553]
[1751936971570,1.0376847,661.01,660.62,1.553]
[1751936971770,1.0376847,661.0,660.62,1.553]
[1751936971969,1.0376847,660.99,660.62,1.553]
[1751936972172,1.0376847,661.09,660.62,1.553]
[1751936972370,1.0376847,661.08,660.62,1.553]
[1751936972668,1.0376847,661.07,660.62,1.553]
[1751936972871,1.0376847,661.06,660.62,1.553]
[1751936973173,1.0376847,661.05,660.62,1.553]
[1751936973374,1.0376847,661.04,660.62,1.553]
[1751936973571,1.0376847,661.03,660.62,1.553]
[1751936973775,1.0376847,661.02,660.62,1.553]
[1751936973974,1.0376847,661.01,660.62,1.553]
[1751936974174,1.0376847,661.0,660.62,1.553]
[1751936974371,1.0376847,660.99,660.62,1.553]
[1751936974576,1.0376847,661.1,660.62,1.553]
[1751936974771,1.0376847,661.09,660.62,1.553]
[1751936974971,1.0376847,661.08,660.62,1.553]
[1751936975274,1.0376847,661.07,660.62,1.553]
[1751936975473,1.0376847,661.06,660.62,1.553]
[1751936975677,1.0376847,661.05,660.62,1.553]
[1751936975877,1.0376847,661.04,660.62,1.553]
[1751936976079,1.0376847,661.03,660.62,1.553]
[1751936976376,1.0376847,661.02,660.62,1.553]
[1751936976576,1.0376847,661.01,660.62,1.553]
[1751936976880,1.0376847,661.0,660.62,1.553]
[1751936977175,1.0376847,660.99,660.62,1.553]
[1751936977380,1.0376847,660.98,660.62,1.553]
[1751936977676,1.0376847,661.09,660.62,1.553]
[1751936977981,1.0376847,661.08,660.62,1.553]
[1751936978274,1.69200489,661.11,660.62,1.553]
[1751936978275,1.0376847,661.07,660.62,1.553]
[1751936978478,1.0376847,661.06,660.62,1.553]